bitfinex/quotes_BTCUSD_20260311
["timestamp","ask_amount","ask_price","bid_price","bid_amount"]
[1773245109562,0.07133683,70307.0,70284.0,0.07261994]
[1773245109792,0.00022001,70307.0,70285.0,0.19573459]
[1773245111346,1e-08,70307.0,70290.0,0.12761637]
[1773245111470,0.00022001,70315.0,70294.0,0.19573459]
[1773245111471,1e-08,70315.0,70294.0,0.19573459]
[1773245111876,1e-08,70315.0,70294.0,0.1955923]
[1773245112082,0.00014223,70315.0,70294.0,0.1955923]
[1773245112479,0.00014223,70315.0,70295.0,0.00148]
[1773245112480,0.071251,70315.0,70295.0,0.00148]
[1773245112684,0.071251,70315.0,70293.0,0.07113083]
[1773245113029,0.20841181,70314.0,70294.0,0.00148]
[1773245113258,0.20841181,70314.0,70295.0,0.00148]
[1773245113416,0.0711106,70313.0,70296.0,0.00148]
[1773245113592,0.0711106,70313.0,70295.0,0.07112881]
[1773245113593,0.07111015,70314.0,70295.0,0.07112881]
[1773245113803,0.00014223,70315.0,70296.0,0.00148]
[1773245114159,0.07125126,70315.0,70296.0,0.00148]
[1773245114750,0.07125094,70315.0,70296.0,0.00148]
[1773245114945,0.00014223,70315.0,70296.0,0.00148]
[1773245115143,0.00014223,70315.0,70297.0,0.19573459]
[1773245115318,1e-08,70315.0,70301.0,0.19573459]
[1773245115689,1e-08,70315.0,70302.0,0.07260173]
[1773245116270,0.00022001,70323.0,70303.0,0.19573459]
[1773245116483,0.18625198,70338.0,70310.0,0.12761637]
[1773245116715,0.18579921,70351.0,70320.0,0.12761637]
[1773245116925,0.07107962,70344.0,70322.0,0.19573459]
[1773245117127,0.18579921,70351.0,70323.0,0.00148]
[1773245117128,0.07107574,70348.0,70323.0,0.00148]
[1773245117331,0.07106734,70356.0,70324.0,0.19573459]
[1773245117550,1e-08,70370.0,70324.0,0.19573459]
[1773245117551,1e-08,70347.0,70326.0,0.19573459]
[1773245117724,0.18625198,70364.0,70326.0,0.19573459]
[1773245118032,0.07106259,70361.0,70326.0,0.1961076]
[1773245118233,0.07106038,70363.0,70326.0,0.1961076]
[1773245118234,0.00022001,70355.0,70326.0,0.1961076]
[1773245119180,0.00022001,70355.0,70330.0,0.12761637]
[1773245119390,0.00022001,70355.0,70332.0,0.19573459]
[1773245119596,0.00022001,70355.0,70334.0,0.19573459]
[1773245119794,0.07128866,70355.0,70333.0,0.07109038]
[1773245119993,0.07128866,70355.0,70334.0,0.00148]
[1773245120243,0.07128866,70355.0,70335.0,0.00148]
[1773245120451,0.07176866,70355.0,70335.0,0.00148]
[1773245120629,0.07176866,70355.0,70333.0,0.07066445]
[1773245120828,0.07176866,70355.0,70334.0,0.00148]
[1773245121237,0.00070001,70355.0,70334.0,0.00148]
[1773245121420,0.07176833,70355.0,70334.0,0.00148]
[1773245121624,0.00070001,70355.0,70335.0,0.07108836]
[1773245121850,0.00070001,70355.0,70336.0,0.00148]
[1773245122184,0.2098593,70354.0,70328.0,0.07109523]
[1773245122383,0.07176824,70355.0,70320.0,0.00148]
[1773245122384,0.18782645,70349.0,70320.0,0.00148]
[1773245122514,0.2098593,70348.0,70318.0,0.00144]
[1773245122717,0.2098593,70348.0,70319.0,0.00144]
[1773245122919,0.2098593,70348.0,70319.0,0.0014]
[1773245123660,0.2098593,70348.0,70326.0,0.001]
[1773245123821,0.07107623,70347.0,70326.0,0.07209736]
[1773245124015,0.07107623,70347.0,70327.0,0.00113771]
[1773245124213,0.07107623,70347.0,70327.0,0.00099549]
[1773245125419,0.25927399,70349.0,70327.0,0.00099549]
[1773245126022,0.25927399,70349.0,70328.0,0.07109543]
[1773245126644,0.25927399,70349.0,70327.0,0.07209092]
[1773245126645,0.2098593,70348.0,70329.0,0.00132]
[1773245126857,0.001,70348.0,70329.0,0.00132]
[1773245127112,0.2108593,70348.0,70329.0,0.00132]
[1773245127442,0.2098593,70348.0,70329.0,0.00132]
[1773245128168,0.28093553,70347.0,70329.0,0.0724143]
[1773245128380,0.28093553,70347.0,70330.0,0.00136]
[1773245129080,0.28093553,70347.0,70328.0,0.07109484]
[1773245129081,0.28093553,70347.0,70328.0,0.00136]
[1773245129279,0.28093553,70347.0,70316.0,0.00136]
[1773245129280,0.2098593,70346.0,70316.0,0.00136]
[1773245129505,0.2098593,70346.0,70317.0,0.00136]
[1773245129930,0.2098593,70346.0,70308.0,0.07111262]
[1773245130135,0.2098593,70346.0,70309.0,0.00136]
[1773245130304,0.2098593,70344.0,70310.0,0.07111363]
[1773245130723,0.2098593,70344.0,70311.0,0.00136]
[1773245130925,0.2098593,70344.0,70321.0,0.0002]
[1773245131172,0.00148,70343.0,70321.0,0.0002]
[1773245131376,0.2098593,70342.0,70321.0,0.0002]
[1773245132523,0.07108229,70341.0,70322.0,0.0711015]
[1773245133192,0.07408229,70344.0,70322.0,0.0711015]
[1773245133193,0.07408027,70344.0,70322.0,0.0711015]
[1773245133349,0.07307968,70344.0,70323.0,0.1971927]
[1773245133552,0.002,70344.0,70323.0,0.1971927]
[1773245133753,0.07107635,70347.0,70323.0,0.1971927]
[1773245134002,0.17033321,70346.0,70322.0,0.0711015]
[1773245134154,0.2098593,70345.0,70324.0,0.0014]
[1773245134355,0.07108229,70341.0,70325.0,0.07109847]
[1773245134964,0.2098593,70340.0,70321.0,0.0002]
[1773245135188,0.07108229,70341.0,70318.0,0.07110455]
[1773245135189,0.00148,70339.0,70318.0,0.07110455]
[1773245135418,0.07108229,70341.0,70317.0,0.0014]
[1773245135574,0.00148,70338.0,70317.0,0.0014]
[1773245135792,0.07108229,70341.0,70317.0,0.0014]
[1773245136076,0.07107673,70347.0,70318.0,0.1971927]
[1773245136481,0.07107673,70347.0,70319.0,0.07110453]
[1773245136673,0.07107673,70347.0,70328.0,0.21215936]
[1773245136869,0.001,70341.0,70329.0,0.1428887]
[1773245137070,0.001,70341.0,70330.0,0.1414887]
[1773245137275,0.001,70341.0,70331.0,0.1414887]
[1773245137536,0.001,70341.0,70332.0,0.1414887]
[1773245137706,0.2098593,70340.0,70316.0,0.0014]
[1773245137884,0.2098593,70338.0,70316.0,0.0014]
[1773245138086,0.2098593,70336.0,70316.0,0.0014]
[1773245138305,0.2113393,70336.0,70316.0,0.0014]
[1773245138508,0.07108836,70335.0,70325.0,0.0002]
[1773245138714,0.07108836,70335.0,70317.0,0.0002]
[1773245138916,0.2098593,70334.0,70317.0,0.0002]
[1773245140120,0.2098593,70334.0,70317.0,0.00144]
[1773245140537,0.07109038,70333.0,70317.0,0.00144]
[1773245140740,0.28090081,70333.0,70317.0,0.00144]
[1773245141354,0.20981043,70332.0,70310.0,0.0002]
[1773245141555,0.07108991,70334.0,70310.0,0.07131339]
[1773245141689,0.07256991,70334.0,70311.0,0.00144]
[1773245142533,0.07109139,70332.0,70312.0,0.07111161]
[1773245143018,0.20981043,70331.0,70312.0,0.07111161]
[1773245143202,0.07109139,70332.0,70312.0,0.07111161]
[1773245143419,0.07257139,70332.0,70312.0,0.07111161]
[1773245144448,0.20981043,70331.0,70311.0,0.07255205]
[1773245144619,0.20981043,70329.0,70312.0,0.00144]
[1773245145141,0.20981043,70329.0,70313.0,0.00144]
[1773245145348,0.20981043,70329.0,70310.0,0.0002]
[1773245146753,0.07109543,70328.0,70310.0,0.0002]
[1773245146931,0.28090586,70328.0,70310.0,0.0002]
[1773245147378,0.07109543,70328.0,70310.0,0.0002]
[1773245147573,0.28090586,70328.0,70310.0,0.0002]
[1773245148206,0.28090586,70328.0,70301.0,0.00144]
[1773245148207,0.20981043,70327.0,70301.0,0.00144]
[1773245148374,0.20981043,70325.0,70301.0,0.00144]
[1773245148779,0.20981043,70323.0,70301.0,0.07256177]
[1773245149005,0.20981043,70323.0,70302.0,0.0002]
[1773245149380,0.20981043,70321.0,70302.0,0.0002]
[1773245149804,0.00148,70320.0,70302.0,0.0002]
[1773245150001,0.00037248,70323.0,70303.0,0.19383201]
[1773245150633,0.001,70329.0,70303.0,0.19383201]
[1773245150804,0.001,70329.0,70305.0,0.19383201]
[1773245151000,0.07108189,70342.0,70305.0,0.19383201]
[1773245151001,0.07257062,70333.0,70305.0,0.19383201]
[1773245151922,0.07109038,70335.0,70305.0,0.19383201]
[1773245152099,0.002,70329.0,70305.0,0.19383201]
[1773245152656,0.07109038,70335.0,70305.0,0.19383201]
[1773245153197,0.07108836,70337.0,70307.0,0.19383201]
[1773245153433,0.07108836,70337.0,70309.0,0.19383201]
[1773245153848,0.07108022,70344.0,70308.0,0.00144]
[1773245153849,0.07107913,70345.0,70311.0,0.19383201]
[1773245154168,0.07107913,70345.0,70308.0,0.00144]
[1773245154169,0.00014216,70345.0,70321.0,0.19383201]
[1773245154350,0.00014216,70345.0,70323.0,0.19383201]
[1773245154494,0.00014216,70345.0,70325.0,0.19383201]
[1773245154698,0.00014216,70345.0,70327.0,0.19383201]
[1773245154910,0.00014216,70345.0,70328.0,0.19527201]
[1773245155117,0.00014216,70345.0,70332.0,0.19383201]
[1773245155316,0.00070001,70355.0,70332.0,0.19383201]
[1773245155540,0.00070001,70355.0,70332.0,0.18383201]
[1773245155757,0.00070001,70355.0,70332.0,0.18394384]
[1773245156673,0.07176835,70355.0,70332.0,0.18394384]
[1773245157167,0.07176835,70355.0,70333.0,0.26492239]
[1773245157677,0.07176835,70355.0,70334.0,0.00144]
[1773245158595,0.00022001,70345.0,70333.0,0.26492239]
[1773245158803,0.00022001,70345.0,70333.0,0.25636239]
[1773245159215,0.00022001,70345.0,70335.0,0.07108836]
[1773245159571,0.00022001,70345.0,70336.0,0.00144]
[1773245160236,0.00022001,70345.0,70335.0,0.07108836]
[1773245160237,0.0712988,70345.0,70335.0,0.00144]
[1773245160438,0.00022001,70345.0,70335.0,0.00144]
[1773245161138,0.07129828,70345.0,70332.0,0.00011183]
[1773245161295,0.19658893,70344.0,70327.0,0.00144]
[1773245161641,0.19658893,70344.0,70325.0,0.00144]
[1773245161642,0.19670064,70344.0,70325.0,0.00144]
[1773245161851,0.00011171,70344.0,70327.0,0.19383201]
[1773245162010,0.00011171,70344.0,70314.0,0.07110891]
[1773245162011,0.00011171,70344.0,70328.0,0.00144]
[1773245162207,0.00011171,70344.0,70329.0,0.00144]
[1773245162410,0.00011171,70344.0,70314.0,0.07110891]
[1773245162609,0.00022001,70352.0,70321.0,0.19383201]
[1773245162789,0.07129172,70352.0,70323.0,0.19383201]
[1773245162991,0.00022001,70352.0,70323.0,0.19383201]
[1773245163222,0.00022001,70352.0,70325.0,0.19383201]
[1773245163782,0.07129169,70352.0,70325.0,0.19383201]
[1773245164183,0.07129169,70352.0,70326.0,0.00144]
[1773245164184,0.19658893,70351.0,70326.0,0.00144]
[1773245164388,0.19658893,70351.0,70323.0,0.07109948]
[1773245164389,0.19658893,70349.0,70327.0,0.00144]
[1773245164623,0.19758893,70345.0,70327.0,0.00144]
[1773245165236,0.19658893,70343.0,70327.0,0.00144]
[1773245165637,0.07129144,70352.0,70327.0,0.19527201]
[1773245165878,0.00022001,70352.0,70327.0,0.19527201]
[1773245167183,0.00022001,70345.0,70327.0,0.19527201]
[1773245167395,0.00122001,70345.0,70329.0,0.19383201]
[1773245167597,0.00022001,70345.0,70329.0,0.19383201]
[1773245167745,0.00022001,70362.0,70331.0,0.19383201]
[1773245167952,0.00022001,70362.0,70341.0,0.19383201]
[1773245168161,0.00022001,70373.0,70328.0,0.07109543]
[1773245168162,0.00022001,70373.0,70344.0,0.18472277]
[1773245168377,0.07127092,70373.0,70345.0,0.19527201]
[1773245169001,1e-08,70368.0,70345.0,0.19383201]
[1773245169194,1e-08,70368.0,70351.0,0.18383201]
[1773245169370,0.00011176,70368.0,70352.0,0.07107118]
[1773245169794,0.00011176,70368.0,70353.0,0.19527201]
[1773245170546,0.00011176,70368.0,70353.0,0.18527201]
[1773245170752,0.00022001,70373.0,70353.0,0.18527201]
[1773245170968,0.00022001,70373.0,70353.0,0.18538376]
[1773245171390,0.00022001,70373.0,70355.0,0.19383201]
[1773245172494,0.07118509,70380.0,70360.0,0.12733748]
[1773245172495,0.00014208,70380.0,70360.0,0.12733748]
[1773245172679,0.00014208,70380.0,70361.0,0.19512243]
[1773245172884,0.07118534,70380.0,70361.0,0.19512243]
[1773245173059,0.00014208,70380.0,70361.0,0.19512243]
[1773245173467,0.00142084,70381.0,70363.0,0.19383201]
[1773245173468,1e-08,70381.0,70363.0,0.19383201]
[1773245173621,0.0005,70400.0,70363.0,0.18383201]
[1773245173839,0.62288961,70426.0,70363.0,0.18383201]
[1773245173840,0.07345798,70428.0,70391.0,0.19383201]
[1773245174053,0.00246326,70428.0,70401.0,0.19338336]
[1773245174374,0.00246326,70428.0,70402.0,0.00144]
[1773245174560,0.00246326,70428.0,70402.0,0.19527201]
[1773245174759,0.07345825,70428.0,70402.0,0.19527201]
[1773245174970,0.07383112,70428.0,70402.0,0.19383201]
[1773245175171,0.07383112,70428.0,70403.0,0.00144]
[1773245175543,0.07383112,70428.0,70404.0,0.07101869]
[1773245175746,0.07383112,70428.0,70405.0,0.00144]
[1773245175951,0.00144,70427.0,70405.0,0.00144]
[1773245176157,0.19658893,70426.0,70400.0,0.07102272]
[1773245176529,0.00144,70427.0,70400.0,0.07102272]
[1773245176530,0.07527112,70428.0,70401.0,0.19383201]
[1773245177179,0.00144,70427.0,70401.0,0.19383201]
[1773245177427,0.00144,70427.0,70400.0,0.07102272]
[1773245177599,0.19658893,70425.0,70402.0,0.00144]
[1773245177763,0.19658893,70425.0,70399.0,0.00144]
[1773245178696,0.0709965,70426.0,70400.0,0.19383201]
[1773245179296,0.19658893,70425.0,70401.0,0.00144]
[1773245179514,0.19658893,70425.0,70372.0,0.03577774]
[1773245179515,0.19658893,70418.0,70376.0,0.17472277]
[1773245179741,0.19658893,70418.0,70364.0,0.27135786]
[1773245179742,0.19448992,70408.0,70366.0,0.18472277]
[1773245179950,0.12733748,70400.0,70367.0,0.00144]
[1773245180143,0.19448992,70399.0,70365.0,0.07105805]
[1773245180349,0.19448992,70399.0,70365.0,0.06105805]
[1773245180670,0.19448992,70397.0,70365.0,0.06105805]
[1773245180890,0.19448992,70395.0,70365.0,0.06105805]
[1773245181069,0.19448992,70395.0,70365.0,0.05101805]
[1773245181070,0.00144,70394.0,70365.0,0.05101805]
[1773245181622,0.00037241,70395.0,70365.0,0.05101805]
[1773245181623,0.00037241,70395.0,70366.0,0.1956435]
[1773245181823,0.07284067,70395.0,70366.0,0.1956435]
[1773245182019,0.07284067,70395.0,70366.0,0.1856435]
[1773245182827,0.19592992,70394.0,70365.0,0.07249805]
[1773245183124,0.00144,70393.0,70365.0,0.07249805]
[1773245183868,0.19448992,70389.0,70359.0,0.0710636]
[1773245184067,0.19448992,70389.0,70358.0,0.00124]
[1773245184393,0.19448992,70389.0,70345.0,0.00144]
[1773245184394,0.19448992,70378.0,70345.0,0.07107825]
[1773245184595,0.00144,70377.0,70345.0,0.07107825]
[1773245184802,0.19448992,70376.0,70345.0,0.07107825]
[1773245185347,0.19448992,70376.0,70341.0,0.00144]
[1773245185717,0.19448992,70376.0,70352.0,0.00014214]
[1773245185938,0.07104795,70375.0,70352.0,0.00014214]
[1773245186305,0.19448992,70374.0,70352.0,0.00014214]
[1773245186506,0.19448992,70374.0,70342.0,0.07108128]
[1773245187464,0.00144,70373.0,70350.0,0.0002]
[1773245187743,0.00144,70372.0,70350.0,0.0002]
[1773245188298,0.00144,70371.0,70350.0,0.0002]
[1773245188693,0.00144,70371.0,70350.0,0.00031175]
[1773245189297,0.19448992,70370.0,70350.0,0.00031175]
[1773245189832,0.00144,70369.0,70350.0,0.00031175]
[1773245190041,0.19448992,70368.0,70343.0,0.0710801]
[1773245190245,0.07105603,70367.0,70341.0,0.07252171]
[1773245190437,0.19448992,70366.0,70341.0,0.07252171]
[1773245190635,0.19592992,70366.0,70341.0,0.07252171]
[1773245191269,0.00144,70365.0,70341.0,0.07252171]
[1773245191469,0.00144,70364.0,70341.0,0.07252171]
[1773245191688,0.00144,70364.0,70341.0,0.26816521]
[1773245192242,0.07106007,70363.0,70341.0,0.07252171]
[1773245192418,0.26554999,70363.0,70342.0,0.07108128]
[1773245193247,0.00144,70362.0,70342.0,0.07108128]
[1773245194326,0.07250209,70362.0,70342.0,0.07108128]
[1773245194530,0.0710531,70370.0,70343.0,0.1956435]
[1773245194812,0.00144,70367.0,70343.0,0.1956435]
[1773245195341,0.00144,70367.0,70355.0,0.00048]
[1773245195342,0.001,70362.0,70355.0,0.00048]
[1773245195665,0.0014,70366.0,70355.0,0.00033045]
[1773245196061,0.07116733,70368.0,70355.0,0.00033045]
[1773245196283,0.00144,70367.0,70355.0,0.00033045]
[1773245196625,0.00144,70366.0,70356.0,0.07106714]
[1773245197275,0.00144,70366.0,70355.0,0.07139798]
[1773245197861,0.00144,70366.0,70355.0,0.0713985]
[1773245198061,0.00144,70366.0,70355.0,0.00033045]
[1773245198570,0.07105805,70365.0,70355.0,0.00033045]
[1773245199530,0.07249805,70366.0,70355.0,0.00033045]
[1773245199531,0.00244,70366.0,70355.0,0.0713982]
[1773245199751,0.001,70366.0,70355.0,0.0713982]
[1773245199985,0.07205727,70366.0,70355.0,0.0713982]
[1773245200421,0.07205727,70366.0,70355.0,0.00033045]
[1773245200951,0.00011169,70368.0,70355.0,0.07139856]
[1773245201358,0.07260677,70368.0,70355.0,0.07139856]
[1773245202396,0.00011169,70368.0,70355.0,0.07139856]
[1773245202594,0.001,70366.0,70355.0,0.07139856]
[1773245202915,0.001,70366.0,70355.0,0.07135856]
[1773245203680,0.00011169,70368.0,70355.0,0.07135856]
[1773245203681,0.07104795,70377.0,70355.0,0.07135856]
[1773245203887,0.07104795,70377.0,70356.0,0.19436977]
[1773245203888,0.00144,70377.0,70356.0,0.19436977]
[1773245204081,0.07248668,70377.0,70357.0,0.00144]
[1773245204249,0.28351767,70377.0,70355.0,0.07147025]
[1773245204457,0.001,70368.0,70355.0,0.07291025]
[1773245204667,0.07105603,70367.0,70355.0,0.07146981]
[1773245204892,0.07105603,70367.0,70344.0,0.07107887]
[1773245205095,0.21103099,70366.0,70343.0,0.07127982]
[1773245205296,0.21103099,70366.0,70343.0,0.0002]
[1773245205526,0.21103099,70366.0,70335.0,0.0002]
[1773245205733,0.21103099,70366.0,70327.0,0.0002]
[1773245205734,0.21103099,70359.0,70326.0,1e-08]
[1773245205963,0.18484378,70348.0,70326.0,1e-08]
[1773245206143,0.21247099,70347.0,70324.0,0.0710993]
[1773245206361,0.21247099,70347.0,70318.0,0.00014221]
[1773245206553,0.07107724,70346.0,70318.0,0.00014221]
[1773245206880,0.21103099,70345.0,70318.0,0.00014221]
[1773245207201,0.21103099,70345.0,70317.0,0.11236956]
[1773245207609,0.00144,70344.0,70320.0,0.30673933]
[1773245207806,0.00144,70344.0,70322.0,0.18436977]
[1773245208100,0.00144,70344.0,70322.0,0.18448148]
[1773245208269,0.00144,70344.0,70322.0,0.29685104]
[1773245208472,0.00144,70344.0,70322.0,0.17448148]
[1773245208679,0.07108027,70343.0,70322.0,0.00011171]
[1773245208836,0.21103099,70342.0,70322.0,0.00011171]
[1773245209226,0.21103099,70342.0,70321.0,0.17358351]
[1773245209426,0.21114263,70342.0,70321.0,0.17358351]
[1773245209826,0.21114263,70342.0,70322.0,0.10236956]
[1773245210188,0.21114263,70342.0,70321.0,0.06121395]
[1773245210189,0.00011164,70342.0,70321.0,0.06121395]
[1773245210337,0.00011164,70342.0,70321.0,0.39267055]
[1773245210338,0.00144,70341.0,70321.0,0.39267055]
[1773245210537,0.00011164,70342.0,70321.0,0.21407059]
[1773245210765,0.07108432,70339.0,70321.0,0.37267055]
[1773245210932,0.07108432,70339.0,70321.0,0.19407059]
[1773245211140,0.07108432,70339.0,70321.0,0.07110224]
[1773245211888,0.02923938,70341.0,70321.0,0.06110224]
[1773245212066,0.28083186,70387.0,70321.0,0.06110224]
[1773245212067,0.07105906,70366.0,70331.0,0.20869078]
[1773245212251,0.00144,70365.0,70333.0,0.20869078]
[1773245212454,0.00144,70365.0,70332.0,0.00144]
[1773245212455,0.00011175,70366.0,70341.0,0.20869078]
[1773245212650,0.00011175,70366.0,70345.0,0.19869078]
[1773245212876,0.00144,70370.0,70345.0,0.19869078]
[1773245213080,0.00144,70371.0,70345.0,0.19880253]
[1773245213295,0.07126875,70375.0,70345.0,0.18880253]
[1773245213483,0.00144,70373.0,70345.0,0.18880253]
[1773245214490,0.20354363,70372.0,70346.0,0.00144]
[1773245214687,0.07105199,70371.0,70346.0,0.00144]
[1773245214909,0.00022001,70350.0,70346.0,0.00144]
[1773245215087,0.27459562,70371.0,70346.0,0.00144]
[1773245215088,0.00144,70362.0,70346.0,0.00144]
[1773245215493,0.00022001,70357.0,70346.0,0.00144]
[1773245216253,0.00144,70363.0,70346.0,0.00144]
[1773245216609,0.00022001,70408.0,70380.0,0.12733748]
[1773245216796,0.01124,70415.0,70382.0,0.20869078]
[1773245216995,0.0822486,70415.0,70382.0,0.20869078]
[1773245217203,0.0710086,70414.0,70382.0,0.20869078]
[1773245217409,0.01124,70415.0,70392.0,0.16859996]
[1773245217617,0.01124,70415.0,70394.0,0.16859996]
[1773245217841,0.01161264,70415.0,70395.0,0.51975374]
[1773245218155,0.07121963,70423.0,70397.0,0.16859996]
[1773245218156,0.00022001,70423.0,70397.0,0.16859996]
[1773245218369,0.00033175,70423.0,70399.0,0.20869078]
[1773245218561,0.07133175,70423.0,70400.0,0.141023]
[1773245218740,0.00033175,70423.0,70402.0,0.0710207]
[1773245218941,0.07133146,70423.0,70403.0,0.142503]
[1773245219166,0.07133146,70423.0,70404.0,0.141023]
[1773245219368,0.07133146,70423.0,70400.0,0.0710207]
[1773245219369,0.20354363,70422.0,70405.0,0.141023]
[1773245219587,0.20354363,70422.0,70406.0,0.142503]
[1773245219894,0.20354363,70422.0,70401.0,0.07102125]
[1773245219895,0.00141942,70451.0,70412.0,0.12733748]
[1773245220087,0.00141942,70451.0,70421.0,0.20869078]
[1773245220088,0.01141142,70448.0,70421.0,0.20869078]
[1773245220368,0.01141142,70448.0,70422.0,0.00148]
[1773245220577,0.08238638,70448.0,70423.0,0.00148]
[1773245220781,0.01141142,70448.0,70424.0,0.07099852]
[1773245221106,0.27498962,70457.0,70424.0,0.07099852]
[1773245221107,0.07144561,70457.0,70424.0,0.07099852]
[1773245221282,0.07144561,70457.0,70425.0,0.00148]
[1773245221580,0.07288561,70457.0,70425.0,0.00148]
[1773245221795,0.20354363,70456.0,70426.0,0.00148]
[1773245222160,0.20354363,70456.0,70424.0,0.07111016]
[1773245222363,0.20354363,70456.0,70409.0,0.15688]
[1773245222364,0.12733748,70450.0,70409.0,0.22793324]
[1773245222566,0.07310562,70457.0,70410.0,0.07101264]
[1773245222567,0.00022001,70457.0,70410.0,0.07101264]
[1773245222774,0.07093779,70485.0,70451.0,0.20869078]
[1773245222969,0.18138912,70497.0,70440.0,0.07098148]
[1773245222970,0.12733748,70480.0,70440.0,0.07098148]
[1773245223316,0.00022001,70465.0,70441.0,0.00148]
[1773245223465,0.00022001,70472.0,70450.0,0.12733748]
[1773245223704,0.00022001,70472.0,70452.0,0.20869078]
[1773245223928,0.00033163,70472.0,70454.0,0.20869078]
[1773245224071,0.00033163,70472.0,70455.0,0.00133068]
[1773245224266,0.00033163,70472.0,70454.0,0.20869078]
[1773245224510,0.00033163,70472.0,70440.0,0.07098148]
[1773245224511,0.00033163,70472.0,70455.0,0.00148]
[1773245224748,0.00033163,70472.0,70456.0,0.00148]
[1773245224749,0.07095117,70471.0,70456.0,0.00148]
[1773245224914,0.07095117,70471.0,70435.0,0.14813292]
[1773245225108,0.07095117,70471.0,70436.0,0.00148]
[1773245225279,0.0712828,70472.0,70441.0,0.20869078]
[1773245225473,0.00144,70481.0,70441.0,0.20869078]
[1773245225474,0.00144,70479.0,70441.0,0.20869078]
[1773245225675,0.00144,70479.0,70441.0,0.2088024]
[1773245225907,0.07094211,70482.0,70441.0,0.2088024]
[1773245226122,0.07094211,70483.0,70441.0,0.2088024]
[1773245226795,0.00144,70488.0,70451.0,0.20869078]
[1773245226996,0.00144,70488.0,70450.0,0.12733748]
[1773245226997,0.07093305,70489.0,70453.0,0.20869078]
[1773245227198,0.07093305,70489.0,70452.0,0.00148]
[1773245227199,0.0004224,70490.0,70461.0,0.20869078]
[1773245227452,0.0004224,70490.0,70463.0,0.20869078]
[1773245227813,0.0004224,70490.0,70465.0,0.20869078]
[1773245228247,0.0004224,70490.0,70465.0,0.20854867]
[1773245228450,0.0004224,70490.0,70465.0,0.20840663]
[1773245228646,0.00079438,70490.0,70465.0,0.20840663]
[1773245228866,0.00079438,70490.0,70466.0,0.0709562]
[1773245229053,0.00079438,70490.0,70466.0,0.07080687]
[1773245229819,0.00101439,70490.0,70467.0,0.00148]
[1773245230457,0.00101439,70490.0,70468.0,0.20869078]
[1773245230678,0.00101439,70490.0,70467.0,0.00148]
[1773245230679,0.00101439,70490.0,70466.0,0.07080687]
[1773245230877,0.00101439,70490.0,70467.0,0.00148]
[1773245230878,0.071947,70490.0,70467.0,0.00148]
[1773245231085,0.071947,70490.0,70461.0,0.20869078]
[1773245231388,0.00144,70489.0,70449.0,0.07097332]
[1773245231594,0.19878423,70490.0,70450.0,0.00148]
[1773245231595,0.20354363,70488.0,70450.0,0.00148]
[1773245231765,0.20498363,70488.0,70451.0,0.00148]
[1773245232369,0.20498363,70488.0,70443.0,0.07097855]
[1773245232568,0.20498363,70488.0,70446.0,0.00148]
[1773245232774,0.07093506,70487.0,70448.0,0.07097433]
[1773245233148,0.07093506,70487.0,70449.0,0.20869078]
[1773245233501,0.00144,70486.0,70449.0,0.20854152]
[1773245233691,0.00144,70485.0,70451.0,0.20869078]
[1773245234456,0.00144,70485.0,70465.0,0.001]
[1773245234656,0.00144,70485.0,70466.0,0.00148]
[1773245234872,0.07093808,70484.0,70466.0,0.00148]
[1773245235301,0.07093808,70484.0,70463.0,0.00148]
[1773245235625,0.07093808,70484.0,70444.0,0.16272291]
[1773245235626,0.07093808,70484.0,70455.0,0.07096693]
[1773245235763,0.07093808,70484.0,70456.0,0.00144]
[1773245236594,0.00148,70483.0,70456.0,0.00144]
[1773245237017,0.07094009,70482.0,70456.0,0.00144]
[1773245237277,0.07094009,70482.0,70456.0,0.00129071]
[1773245237424,0.07094009,70482.0,70456.0,0.07225649]
[1773245237629,0.00148,70481.0,70467.0,0.001]
[1773245237829,0.00148,70481.0,70456.0,0.00129071]
[1773245237830,0.00148,70481.0,70463.0,0.001]
[1773245238386,0.00148,70481.0,70450.0,0.0002]
[1773245238666,0.20354363,70479.0,70445.0,0.00144]
[1773245238821,0.07094412,70478.0,70446.0,0.13910456]
[1773245239020,0.20354363,70477.0,70447.0,0.13910456]
[1773245239234,0.20354363,70477.0,70442.0,0.0002]
[1773245239235,0.00148,70476.0,70448.0,0.13910456]
[1773245239447,0.20354363,70477.0,70449.0,0.13910456]
[1773245239448,0.00148,70475.0,70449.0,0.13910456]
[1773245239653,0.00148,70475.0,70442.0,0.0002]
[1773245239902,0.12683723,70460.0,70435.0,0.0002]
[1773245240087,0.12683723,70460.0,70426.0,0.16859996]
[1773245240088,0.21649829,70459.0,70426.0,0.16859996]
[1773245240227,0.21649829,70459.0,70428.0,0.16859996]
[1773245240428,0.21649829,70459.0,70424.0,0.00144]
[1773245240668,0.21649829,70459.0,70423.0,0.000142]
[1773245240906,0.21649829,70459.0,70418.0,0.16859996]
[1773245240907,0.07097332,70449.0,70418.0,0.16859996]
[1773245241093,0.21649829,70448.0,70418.0,0.00011162]
[1773245241289,0.21649829,70448.0,70418.0,0.16871158]
[1773245241494,0.21649829,70448.0,70418.0,0.00011162]
[1773245241896,0.21649829,70448.0,70415.0,0.01124]
[1773245242070,0.21649829,70448.0,70415.0,0.01135158]
[1773245242280,0.21649829,70448.0,70416.0,0.16859996]
[1773245242522,0.21749829,70448.0,70415.0,0.17995154]
[1773245242863,0.07097735,70445.0,70415.0,0.17995154]
[1773245243064,0.21501829,70444.0,70415.0,0.17995154]
[1773245243293,0.00148,70443.0,70418.0,0.16859996]
[1773245243493,0.00148,70442.0,70419.0,0.16859996]
[1773245243929,0.00148,70442.0,70416.0,0.16859996]
[1773245244294,0.21649829,70442.0,70420.0,0.16859996]
[1773245244566,0.21501829,70438.0,70410.0,0.0001548]
[1773245244717,0.21501829,70438.0,70410.0,0.00026654]
[1773245244924,0.07098541,70437.0,70410.0,0.00026654]
[1773245245262,0.2860037,70437.0,70410.0,0.00026654]
[1773245245462,0.2460037,70437.0,70410.0,0.00026654]
[1773245245903,0.2460037,70437.0,70406.0,0.00048]
[1773245245904,0.12683723,70430.0,70406.0,0.00048]
[1773245246073,0.21649829,70429.0,70402.0,0.21100334]
[1773245246278,0.12683723,70420.0,70393.0,0.28099993]
[1773245246482,0.00148,70419.0,70390.0,0.35351262]
[1773245246664,0.00148,70418.0,70390.0,0.00148]
[1773245246846,0.00148,70417.0,70390.0,0.07251253]
[1773245247042,0.00148,70416.0,70390.0,0.07251253]
[1773245247243,0.00148,70415.0,70391.0,0.19662763]
[1773245247494,0.00148,70414.0,70391.0,0.19662763]
[1773245247649,0.00148,70413.0,70390.0,0.00148]
[1773245247868,0.00133802,70413.0,70390.0,0.07251266]
[1773245248186,0.00133802,70413.0,70397.0,0.00014205]